bitfinex-derivatives/quotes_BTCF0:USTF0_20250308
["timestamp","ask_amount","ask_price","bid_price","bid_amount"]
[1741412032241,0.28295384,86040.0,86039.0,0.3762472]
[1741412033341,0.21762516,86040.0,86039.0,0.3762472]
[1741412033844,0.002,86040.0,86039.0,0.3762472]
[1741412035139,0.002,86040.0,86039.0,0.4534472]
[1741412036848,0.002,86040.0,86039.0,0.5835472]
[1741412037346,0.00030945,86046.0,86045.0,0.1162391]
[1741412038343,0.00030945,86046.0,86045.0,0.3609391]
[1741412038544,0.00330945,86046.0,86045.0,0.3609391]
[1741412038739,0.00530945,86046.0,86045.0,0.3609391]
[1741412040149,0.25200945,86046.0,86045.0,0.3609391]
[1741412040550,0.28258896,86046.0,86045.0,0.3609391]
[1741412041046,0.28258896,86046.0,86045.0,0.39118466]
[1741412041251,0.39882676,86046.0,86045.0,0.39118466]
[1741412041642,0.39882676,86046.0,86045.0,0.27494556]
[1741412042654,0.39882676,86046.0,86045.0,0.39118466]
[1741412045452,0.33350552,86046.0,86045.0,0.39118466]
[1741412045647,0.33350552,86046.0,86045.0,0.27494556]
[1741412046049,0.25366844,86046.0,86045.0,0.27494556]
[1741412046447,0.25366844,86046.0,86045.0,0.27504681]
[1741412050254,0.25366844,86046.0,86045.0,0.39128591]
[1741412050658,0.14681731,86046.0,86045.0,0.39128591]
[1741412051051,0.03057951,86046.0,86045.0,0.39128591]
[1741412051246,0.1162378,86046.0,86045.0,0.39128591]
[1741412051960,0.1162378,86046.0,86045.0,0.27504681]
[1741412053153,0.1162378,86046.0,86045.0,0.00010125]
[1741412053358,0.02650835,86046.0,86033.0,0.2427]
[1741412053551,0.4823,86048.0,86032.0,0.73284]
[1741412053552,0.1162486,86038.0,86032.0,0.73284]
[1741412053751,0.14346245,86038.0,86032.0,0.73284]
[1741412054355,0.02721385,86038.0,86037.0,0.00024265]
[1741412054545,0.1162486,86038.0,86037.0,0.00024265]
[1741412055156,0.1162486,86038.0,86037.0,0.00124265]
[1741412055962,0.1162486,86038.0,86037.0,0.00224265]
[1741412056157,0.42175454,86038.0,86037.0,0.00224265]
[1741412056555,0.54265454,86038.0,86037.0,0.00224265]
[1741412058252,0.54265454,86038.0,86037.0,0.00124265]
[1741412058453,0.42640594,86038.0,86021.0,0.1195]
[1741412058658,0.42640594,86038.0,86009.0,0.0768]
[1741412058659,0.1162756,86018.0,86015.0,1.12104049]
[1741412058961,0.05093049,86018.0,86015.0,1.12104049]
[1741412059352,0.05093049,86018.0,86015.0,0.01007629]
[1741412059559,0.30113049,86018.0,86015.0,0.00875629]
[1741412059760,0.30013049,86018.0,86016.0,0.131]
[1741412059961,0.30013049,86018.0,86016.0,0.2616]
[1741412060671,0.29913049,86018.0,86016.0,0.2616]
[1741412060860,0.29913049,86018.0,86017.0,0.13274379]
[1741412061356,0.29913049,86018.0,86017.0,0.13374379]
[1741412061660,0.29913049,86018.0,86017.0,0.13474379]
[1741412062565,0.21926229,86018.0,86017.0,0.13474379]
[1741412063262,0.1162756,86018.0,86017.0,0.13474379]
[1741412063963,0.2382756,86018.0,86017.0,0.13474379]
[1741412066065,0.5990756,86018.0,86017.0,0.13474379]
[1741412067861,0.1162756,86018.0,86017.0,0.13474379]
[1741412068763,0.050936,86018.0,86017.0,0.25102079]
[1741412069158,0.0581352,86022.0,86017.0,0.13474379]
[1741412069359,0.0581331,86025.0,86018.0,0.1849377]
[1741412069666,0.00017441,86026.0,86024.0,0.3608]
[1741412069968,0.11643921,86026.0,86025.0,0.2525]
[1741412070262,0.11643921,86026.0,86025.0,0.3718]
[1741412070665,0.11643921,86026.0,86025.0,0.4880662]
[1741412071064,0.11643921,86026.0,86025.0,0.4890662]
[1741412071469,0.11643921,86026.0,86025.0,0.3728]
[1741412072165,0.11643921,86026.0,86025.0,0.3738]
[1741412074764,0.11643921,86026.0,86025.0,0.4900662]
[1741412076267,0.00017441,86026.0,86025.0,0.4900662]
[1741412077866,0.3608,86039.0,86038.0,0.1162486]
[1741412078765,0.4770472,86039.0,86038.0,0.1162486]
[1741412078965,0.4770472,86039.0,86038.0,0.3597486]
[1741412079267,0.3608,86039.0,86038.0,0.3597486]
[1741412079459,0.1162472,86039.0,86038.0,0.2435]
[1741412093887,0.1162472,86039.0,86038.0,0.27073634]
[1741412095281,0.1162472,86039.0,86038.0,0.27273634]
[1741412095482,0.0581227,86041.0,86038.0,0.27273634]
[1741412095686,0.1162472,86039.0,86038.0,0.27273634]
[1741412097582,0.1162472,86039.0,86038.0,0.2455]
[1741412098584,0.1162472,86039.0,86038.0,0.2445]
[1741412098787,0.1162472,86039.0,86038.0,0.2455]
[1741412099380,0.1162472,86039.0,86038.0,0.2445]
[1741412099689,0.1162472,86039.0,86038.0,0.2455]
[1741412100185,0.116258,86031.0,86030.0,0.00017441]
[1741412100393,0.1162702,86022.0,86021.0,0.1194]
[1741412100583,0.1162702,86022.0,86021.0,0.2388]
[1741412100776,0.0581342,86024.0,86021.0,0.3550716]
[1741412100980,0.24546081,86030.0,86029.0,0.1162607]
[1741412101185,0.1162608,86030.0,86029.0,0.1162607]
[1741412101883,0.1152608,86030.0,86029.0,0.251]
[1741412102290,0.2461608,86030.0,86029.0,0.251]
[1741412102688,0.2461608,86030.0,86029.0,0.252]
[1741412102985,0.3662608,86030.0,86029.0,0.252]
[1741412104890,0.1162594,86031.0,86030.0,0.116255]
[1741412105191,0.1162594,86031.0,86030.0,0.4823594]
[1741412105391,0.1162594,86031.0,86030.0,0.3661]
[1741412106184,0.1162594,86031.0,86030.0,0.2454]
[1741412108382,0.2476594,86031.0,86030.0,0.1248]
[1741412108580,0.2597,86031.0,86030.0,0.1248]
[1741412108784,0.3759594,86031.0,86030.0,0.1248]
[1741412110296,0.3759594,86031.0,86030.0,0.13349671]
[1741412110491,0.3759594,86031.0,86030.0,0.1248]
[1741412113902,0.3759594,86031.0,86030.0,0.0920377]
[1741412115300,0.7367594,86031.0,86030.0,0.0920377]
[1741412115889,0.4770594,86031.0,86030.0,0.1009633]
[1741412116092,0.1162594,86031.0,86030.0,0.2172227]
[1741412116495,0.1162594,86031.0,86030.0,0.3492227]
[1741412116691,0.0581275,86034.0,86030.0,0.3492227]
[1741412116893,0.1162578,86032.0,86031.0,0.1162553]
[1741412117095,0.1162578,86032.0,86031.0,0.02357352]
[1741412117296,0.05092838,86032.0,86031.0,0.132]
[1741412117998,0.0581275,86034.0,86031.0,0.132]
[1741412118503,0.1162578,86032.0,86031.0,0.248258]
[1741412118802,0.1162578,86032.0,86031.0,0.132]
[1741412118998,0.03641108,86032.0,86031.0,0.132]
[1741412119199,0.0581259,86036.0,86031.0,0.132]
[1741412119499,0.1162578,86032.0,86031.0,0.132]
[1741412119699,0.3608,86038.0,86031.0,0.132]
[1741412119900,0.3608,86038.0,86032.0,0.131]
[1741412120695,0.3608,86038.0,86034.0,0.0581268]
[1741412120904,0.3608,86038.0,86037.0,0.1162499]
[1741412121402,0.3608,86038.0,86035.0,0.5089519]
[1741412121893,0.3608,86038.0,86037.0,0.1162499]
[1741412122098,0.3608,86046.0,86041.0,0.1162443]
[1741412122299,0.3608,86046.0,86042.0,0.2592]
[1741412122603,0.1162418,86043.0,86042.0,0.2592]
[1741412123888,0.1182418,86043.0,86042.0,0.2592]
[1741412124301,0.1202418,86043.0,86042.0,0.2592]
[1741412126904,0.1202418,86043.0,86042.0,0.3754432]
[1741412128812,0.3706418,86043.0,86042.0,0.2592]
[1741412135702,0.7314418,86043.0,86042.0,0.2592]
[1741412138614,0.3706418,86043.0,86042.0,0.2592]
[1741412138812,0.7314418,86043.0,86042.0,0.2592]
[1741412139509,0.7314418,86043.0,86040.0,4e-05]
[1741412139717,0.1162445,86041.0,86040.0,4e-05]
[1741412140309,0.1162445,86041.0,86031.0,0.2494]
[1741412140615,0.1162567,86032.0,86031.0,0.2494]
[1741412141406,0.3623567,86032.0,86031.0,0.2494]
[1741412141811,0.3623567,86032.0,86031.0,0.1218]
[1741412142018,0.1162675,86024.0,86023.0,0.1225]
[1741412142414,0.13976445,86024.0,86023.0,0.1225]
[1741412142814,0.38586445,86024.0,86023.0,0.1225]
[1741412145207,0.3623675,86024.0,86023.0,0.1225]
[1741412146214,0.1162675,86024.0,86023.0,0.1225]
[1741412146421,0.1162675,86024.0,86023.0,0.253]
[1741412150724,0.0581316,86028.0,86023.0,0.253]
[1741412150921,0.2758162,86050.0,86024.0,0.1207]
[1741412150922,0.0581282,86033.0,86024.0,0.1207]
[1741412151121,0.3651,86044.0,86028.0,0.1162621]
[1741412151321,0.1162531,86035.0,86034.0,0.14009438]
[1741412151523,0.02333884,86038.0,86033.0,0.02434034]
[1741412151830,0.1162526,86035.0,86034.0,0.3728]
[1741412152728,0.1162526,86035.0,86034.0,0.245]
[1741412154429,0.1162526,86035.0,86034.0,0.361254]
[1741412154620,0.1162526,86035.0,86034.0,0.245]
[1741412155629,0.0581251,86037.0,86034.0,0.361254]
[1741412156227,0.1162526,86035.0,86034.0,0.3612527]
[1741412156422,0.1162526,86035.0,86034.0,0.245]
[1741412156927,0.4770526,86035.0,86034.0,0.245]
[1741412157125,0.4770526,86035.0,86023.0,4e-05]
[1741412157126,0.1162675,86024.0,86023.0,4e-05]
[1741412157323,0.4770675,86024.0,86023.0,4e-05]
[1741412157519,0.1162702,86022.0,86021.0,0.24907441]
[1741412157724,0.1162702,86022.0,86021.0,0.12807441]
[1741412158223,0.3638702,86022.0,86021.0,0.12807441]
[1741412159530,0.26765331,86022.0,86021.0,0.12807441]
[1741412159832,0.38735331,86022.0,86021.0,0.12807441]
[1741412160325,0.38735331,86022.0,86021.0,0.00017441]
[1741412161126,0.63188311,86022.0,86010.0,0.73156]
[1741412161323,0.1162851,86011.0,86010.0,0.73156]
[1741412161827,0.1162959,86003.0,86002.0,0.3608]
[1741412163432,0.13955777,86003.0,86002.0,0.3608]
[1741412164737,0.1162959,86003.0,86002.0,0.3608]
[1741412165140,0.1162959,86003.0,85997.0,0.128]
[1741412165441,0.1163027,85998.0,85997.0,0.128]
[1741412165635,0.5785,85998.0,85983.0,0.00124]
[1741412165935,0.5785,85998.0,85980.0,4e-05]
[1741412165936,0.1163256,85981.0,85980.0,4e-05]
[1741412166326,0.3645,85982.0,85979.0,0.1183]
[1741412166528,0.238027,85980.0,85979.0,0.1183]
[1741412167241,0.116327,85980.0,85979.0,0.1183]
[1741412169229,0.116327,85980.0,85979.0,0.1269876]
[1741412170027,0.116327,85980.0,85979.0,0.1183]
[1741412171336,0.116327,85980.0,85971.0,0.00017441]
[1741412171337,0.1163378,85972.0,85971.0,0.00017441]
[1741412171541,0.1163378,85972.0,85971.0,0.13882595]
[1741412171737,0.00060001,85979.0,85971.0,0.13010001]
[1741412171942,0.3608,85980.0,85972.0,0.1273]
[1741412172245,0.1163365,85973.0,85972.0,0.1273]
[1741412172744,0.1163365,85973.0,85972.0,0.2481]
[1741412173934,0.1163348,85975.0,85972.0,0.2481]
[1741412174131,0.41956381,85980.0,85973.0,0.1301]
[1741412174441,0.1163351,85974.0,85973.0,0.1301]
[1741412174738,0.1163351,85974.0,85973.0,0.2525]
[1741412176045,0.1163378,85972.0,85971.0,0.00867021]
[1741412177341,0.4771378,85972.0,85971.0,0.00867021]
[1741412177551,0.49825954,85972.0,85971.0,0.00867021]
[1741412177746,0.75455954,85972.0,85971.0,0.00867021]
[1741412178538,0.1163446,85967.0,85966.0,0.00886283]
[1741412178739,0.1163446,85967.0,85952.0,0.73296]
[1741412178740,0.1163581,85957.0,85956.0,0.128]
[1741412178937,0.05097165,85957.0,85956.0,0.2506]
[1741412179742,0.05097165,85957.0,85956.0,0.7277595]
[1741412179942,0.05097165,85957.0,85956.0,0.6114]
[1741412180440,0.05097165,85957.0,85956.0,0.7277595]
[1741412180843,0.00017441,85965.0,85956.0,0.6114]
[1741412181042,0.116355,85963.0,85962.0,0.1163487]
[1741412181643,0.116355,85963.0,85962.0,0.3659487]
[1741412182846,0.116355,85963.0,85962.0,0.2496]
[1741412184546,0.116355,85963.0,85962.0,0.3659514]
[1741412184750,0.116355,85963.0,85962.0,0.2496]
[1741412187152,0.364155,85963.0,85962.0,0.2496]
[1741412188350,0.239155,85963.0,85962.0,0.2496]
[1741412190752,0.361655,85963.0,85962.0,0.2496]
[1741412191145,0.116355,85963.0,85962.0,0.3659514]
[1741412191550,0.00017441,85965.0,85964.0,0.1163487]
[1741412191751,0.11652171,85965.0,85964.0,0.4771487]
[1741412191941,0.00017441,85965.0,85964.0,0.7255487]
[1741412192343,0.0581618,85983.0,85964.0,0.7255487]
[1741412192344,0.0581628,85982.0,85964.0,0.6092]
[1741412192557,0.4771301,85980.0,85979.0,0.1163284]
[1741412193641,0.4771301,85980.0,85979.0,0.3647284]
[1741412194449,0.4771301,85980.0,85979.0,0.2484]
[1741412194644,0.6022301,85980.0,85979.0,0.2484]
[1741412194844,0.7308301,85980.0,85979.0,0.2484]
[1741412195056,0.66545191,85980.0,85979.0,0.2484]
[1741412201861,0.3700301,85980.0,85979.0,0.2484]
[1741412204963,0.30465564,85980.0,85979.0,0.2484]
[1741412206365,0.34108412,85980.0,85979.0,0.2484]
[1741412211060,0.1163306,85980.0,85979.0,0.3647284]
[1741412211768,0.3608,86013.0,85987.0,0.1928]
[1741412211963,0.2427945,86004.0,86003.0,0.14009438]
[1741412212166,0.1265,86004.0,85994.0,0.44564778]
[1741412212366,0.0581497,86001.0,85994.0,0.44564778]
[1741412212568,0.1163059,85997.0,85996.0,0.116304]
[1741412213965,0.058151,85999.0,85998.0,0.1163027]
[1741412214569,0.1163017,85999.0,85998.0,0.2438999]
[1741412214774,0.03641969,86003.0,85998.0,0.26500059]
[1741412214974,0.0509428,86001.0,86000.0,0.1162972]
[1741412215172,0.0509428,86001.0,86000.0,0.3664972]
[1741412216067,0.0509428,86001.0,86000.0,0.2502]
[1741412216269,0.05832101,86005.0,86000.0,0.2502]
[1741412216469,0.1162951,86004.0,86003.0,0.1162945]
[1741412216771,0.00017441,86005.0,86003.0,0.1162945]
[1741412216772,0.00017441,86005.0,86004.0,0.1162945]
[1741412217675,0.3563762,86019.0,86018.0,0.1162756]
[1741412217874,0.1162824,86014.0,86013.0,0.1162795]
[1741412218266,0.3608,86014.0,86000.0,0.40865438]
[1741412218468,0.3564824,86013.0,86012.0,4e-05]
[1741412219366,0.3564824,86013.0,86004.0,0.1162942]
[1741412219569,0.1162932,86005.0,86004.0,0.1162942]
[1741412219768,0.1162959,86003.0,86000.0,0.14026879]
[1741412220075,0.1162959,86003.0,86000.0,0.00017441]
[1741412220472,0.3539959,86003.0,86000.0,0.00017441]
[1741412220772,0.1162986,86001.0,86000.0,0.00017441]
[1741412222266,0.1377775,86001.0,86000.0,0.00017441]
[1741412223679,0.0214789,86001.0,86000.0,0.00017441]
[1741412223874,0.1162986,86001.0,86000.0,0.00017441]
[1741412225378,0.13771538,86001.0,86000.0,0.00017441]
[1741412227982,0.13771538,86001.0,86000.0,1e-08]
[1741412228573,0.1162999,86000.0,85999.0,1e-08]
[1741412228774,0.1162999,86000.0,85986.0,0.73204]
[1741412228775,0.1163175,85987.0,85986.0,0.73204]
[1741412229174,0.1163175,85987.0,85986.0,0.6719208]
[1741412229383,0.1163175,85987.0,85986.0,0.6313375]
[1741412229584,0.3634175,85987.0,85986.0,0.6313375]
[1741412230277,0.3634175,85987.0,85980.0,0.50237438]
[1741412230278,0.1163202,85985.0,85980.0,0.50237438]
[1741412230773,0.1163202,85985.0,85984.0,5e-08]
[1741412231581,0.1163202,85985.0,85978.0,0.00017441]
[1741412231582,0.1163284,85979.0,85978.0,0.00017441]
[1741412231772,0.1163459,85966.0,85965.0,4e-05]
[1741412232382,0.1163459,85966.0,85964.0,0.1209]
[1741412232383,0.2457,85967.0,85964.0,0.1209]
[1741412232684,0.3620473,85965.0,85964.0,0.1209]
[1741412236482,0.1163446,85967.0,85964.0,0.1209]
[1741412236686,0.1163446,85967.0,85966.0,0.3608]
[1741412236879,0.0581701,85971.0,85966.0,0.3608]
[1741412237077,0.1163432,85968.0,85967.0,0.1253]
[1741412237278,0.1163432,85968.0,85967.0,0.3677446]
[1741412237486,0.1163432,85968.0,85967.0,0.2514]
[1741412237673,0.09198424,85968.0,85967.0,0.2514]
[1741412241684,0.09198424,85968.0,85967.0,0.3677446]
[1741412242484,0.1163409,85970.0,85968.0,0.1163421]
[1741412242793,0.1163409,85970.0,85969.0,0.1163419]
[1741412242996,0.1163409,85970.0,85969.0,0.3612419]
[1741412243292,0.058166,85977.0,85973.0,0.1163365]
[1741412243293,0.1163315,85977.0,85973.0,0.1163365]
[1741412243482,0.116333,85976.0,85973.0,0.1163365]
[1741412243683,0.116333,85976.0,85973.0,0.6699365]
[1741412243990,0.058165,85978.0,85973.0,0.6699365]
[1741412244193,0.11650951,85974.0,85973.0,0.1268]
[1741412244393,0.05113325,85974.0,85973.0,0.4876]
[1741412244689,0.05113325,85974.0,85973.0,0.1268]
[1741412244886,0.05113325,85974.0,85973.0,0.6039365]
[1741412245302,0.1163306,85979.0,85978.0,0.1163272]
[1741412245503,0.0581603,85985.0,85975.0,0.1214]
[1741412245504,0.1163324,85976.0,85975.0,0.1214]
[1741412245815,0.1163324,85976.0,85975.0,0.2482]
[1741412247605,0.1163324,85976.0,85975.0,0.3645338]
[1741412248406,0.1163324,85976.0,85975.0,0.2482]
[1741412249807,0.4771324,85976.0,85975.0,0.2482]
[1741412250117,0.1163473,85965.0,85964.0,0.50245438]
[1741412250307,0.1163473,85965.0,85964.0,0.1163887]
[1741412250505,0.0581727,85967.0,85964.0,0.4771487]
[1741412250705,0.1163473,85965.0,85964.0,0.3608]
[1741412251313,0.1163473,85965.0,85964.0,0.4771487]
[1741412251512,0.1163473,85965.0,85964.0,0.7218487]
[1741412251705,0.1163473,85965.0,85964.0,0.6055]
[1741412252306,0.1163473,85965.0,85964.0,0.7218487]
[1741412252909,0.1163473,85965.0,85964.0,0.6055]
[1741412253508,0.1163473,85965.0,85964.0,0.7983]
[1741412253718,0.1163473,85965.0,85964.0,0.7218487]
[1741412254512,0.1163473,85965.0,85964.0,0.6055]
[1741412254715,0.1163473,85965.0,85964.0,0.2447]
[1741412255115,0.3620473,85965.0,85964.0,0.2447]
[1741412255506,0.3620473,85965.0,85964.0,0.3610487]
[1741412255713,0.1163473,85965.0,85964.0,0.3610487]
[1741412256717,0.1163423,85971.0,85970.0,0.1163396]
[1741412257019,0.0581689,85973.0,85969.0,0.3644]
[1741412257207,0.2408405,85970.0,85969.0,0.3644]
[1741412258221,0.2408405,85970.0,85969.0,0.2403]
[1741412261424,0.2408405,85970.0,85969.0,0.3566419]
[1741412261725,0.2408405,85970.0,85969.0,0.2403]
[1741412262126,0.2408405,85970.0,85969.0,0.1226]
[1741412262425,0.2408405,85970.0,85967.0,0.3608]
[1741412262617,0.1187,85969.0,85967.0,0.3608]
[1741412262817,0.1163432,85968.0,85967.0,0.3608]
[1741412263018,0.2378432,85968.0,85967.0,0.3608]
[1741412264225,0.1163487,85964.0,85963.0,0.4771898]
[1741412264829,0.1163487,85964.0,85963.0,0.36084]
[1741412265219,0.3554487,85964.0,85963.0,0.36084]
[1741412266422,0.3554487,85964.0,85963.0,0.3608]
[1741412266727,0.1163541,85960.0,85959.0,0.1163546]
[1741412266919,0.1163541,85960.0,85959.0,0.1163946]
[1741412267317,0.1163541,85960.0,85959.0,4e-05]
[1741412267524,0.3554541,85960.0,85959.0,4e-05]
[1741412268725,0.26101119,85960.0,85959.0,4e-05]
[1741412273329,0.26101119,85960.0,85957.0,0.00017441]
[1741412273531,0.1163568,85958.0,85957.0,0.00017441]
[1741412282328,0.1163568,85958.0,85957.0,0.23743251]
[1741412282534,0.0581773,85960.0,85957.0,0.23743251]
[1741412282735,0.1163554,85959.0,85958.0,0.2375554]
[1741412282942,0.1163554,85959.0,85958.0,0.1212]
[1741412283137,0.1163554,85959.0,85958.0,0.2418]
[1741412283630,0.1163554,85959.0,85958.0,0.3581568]
[1741412284032,0.0581773,85960.0,85958.0,0.2418]
[1741412284231,0.1163554,85959.0,85958.0,0.2418]
[1741412284831,0.1163509,85964.0,85963.0,0.116347]
[1741412285032,0.0581729,85966.0,85963.0,0.3608]
[1741412285234,0.1163487,85964.0,85963.0,0.3608]
[1741412286240,0.0581697,85971.0,85963.0,0.47715]
[1741412286241,0.1163459,85967.0,85963.0,0.47715]
[1741412286434,0.0581716,85968.0,85963.0,0.47715]
[1741412286742,0.1163477,85965.0,85964.0,0.1163487]
[1741412287234,0.0581697,85971.0,85964.0,0.1163487]
[1741412287438,0.116348,85965.0,85964.0,0.1163487]
[1741412288536,0.116348,85965.0,85964.0,0.1361503]
[1741412289439,0.1745068,85972.0,85971.0,0.1163378]
[1741412289743,0.1163468,85967.0,85966.0,0.1163432]
[1741412290240,0.2385,85973.0,85964.0,0.0198016]
[1741412290439,0.1163469,85968.0,85967.0,0.1745118]
[1741412291539,0.1235,85972.0,85967.0,0.1745118]
[1741412291745,0.0581689,85973.0,85972.0,0.1163378]
[1741412292741,0.00060001,85976.0,85975.0,0.1163338]
[1741412292938,0.01963767,85981.0,85979.0,0.116327]
[1741412293140,0.1184,85987.0,85980.0,0.116327]
[1741412293337,0.1184,85987.0,85978.0,4e-05]
[1741412293536,0.1184,85987.0,85985.0,0.1163189]
[1741412293537,0.116322,85986.0,85985.0,0.1163189]
[1741412295449,0.002,85986.0,85985.0,0.1163189]
[1741412295644,0.02182983,85986.0,85985.0,0.1163189]
[1741412296043,0.02382983,85986.0,85985.0,0.1163189]
[1741412296944,0.25315143,85986.0,85985.0,0.1163189]
[1741412297248,0.13682983,85986.0,85984.0,4e-05]
[1741412297447,0.1163202,85985.0,85984.0,0.232461]
[1741412298341,0.2292202,85985.0,85984.0,0.232461]
[1741412298943,0.1183202,85985.0,85984.0,0.232461]
[1741412299450,0.05294783,85985.0,85984.0,0.232461]
[1741412299653,0.1149,85985.0,85984.0,0.232461]
[1741412300249,0.002,85985.0,85984.0,0.232461]
[1741412300646,0.004,85985.0,85984.0,0.232461]
[1741412301545,0.1246,85985.0,85984.0,0.352961]
[1741412301943,0.004,85985.0,85984.0,0.352961]
[1741412302344,0.004,85985.0,85984.0,0.465861]
[1741412303152,0.1203202,85985.0,85984.0,0.465861]
[1741412303354,0.2409202,85985.0,85984.0,0.465861]
[1741412303548,0.1206,85985.0,85984.0,0.465861]
[1741412303941,0.01982983,85986.0,85985.0,0.1163202]
[1741412304255,0.2369122,85991.0,85990.0,0.1163135]
[1741412304456,0.1206,85991.0,85990.0,0.1163135]
[1741412304644,0.47788342,85994.0,85993.0,0.1163094]
[1741412304843,0.36097441,85994.0,85993.0,0.1163094]
[1741412305355,0.36097441,85994.0,85993.0,0.1920294]
[1741412305854,0.47728251,85994.0,85993.0,0.1920294]
[1741412306256,0.48028251,85994.0,85993.0,0.1920294]
[1741412306442,0.36397441,85994.0,85993.0,0.20955318]
[1741412306647,0.48028251,85994.0,85993.0,0.20955318]
[1741412306845,0.48028251,85994.0,85993.0,0.1920294]
[1741412307040,0.48428251,85994.0,85993.0,0.1920294]
[1741412307454,0.00717441,85994.0,85993.0,0.5528294]
[1741412307951,0.00717441,85994.0,85993.0,0.57111175]
[1741412308650,0.3608,86007.0,85993.0,0.86890235]
[1741412308863,0.3608,86007.0,86006.0,0.1162918]
[1741412309555,0.3608,86007.0,85999.0,0.05815]
[1741412309556,0.1162918,86006.0,86005.0,4e-05]
[1741412309756,0.3513918,86006.0,86005.0,4e-05]
[1741412310351,0.2351,86006.0,86004.0,0.1162936]
[1741412310550,0.1162932,86005.0,86004.0,0.1162936]
[1741412310850,0.1152932,86005.0,86004.0,4e-05]
[1741412311051,0.3431932,86005.0,86004.0,4e-05]
[1741412311543,0.26331383,86005.0,86004.0,4e-05]
[1741412311746,0.2279,86005.0,86004.0,0.00104]
[1741412312254,0.3441932,86005.0,86004.0,0.00104]
[1741412312449,0.3441932,86005.0,86004.0,0.001]
[1741412313153,0.3441932,86005.0,86004.0,0.002]
[1741412313852,0.3441932,86005.0,86004.0,0.001]
[1741412316158,0.2279,86005.0,86003.0,4e-05]
[1741412316365,0.1152945,86004.0,86003.0,4e-05]
[1741412316656,0.4760945,86004.0,86003.0,4e-05]
[1741412316844,0.7018945,86004.0,86003.0,4e-05]
[1741412317953,0.7038945,86004.0,86003.0,4e-05]
[1741412318153,0.3430945,86004.0,86003.0,4e-05]
[1741412318352,0.7038945,86004.0,86003.0,4e-05]
[1741412319562,0.63853398,86004.0,86003.0,4e-05]
[1741412320855,0.55664852,86004.0,86003.0,4e-05]
[1741412321058,0.67294302,86004.0,86003.0,0.00204]
[1741412321453,0.67294302,86004.0,86003.0,0.12474]
[1741412321654,0.67294302,86004.0,86003.0,0.24124]
[1741412323456,0.67294302,86004.0,86003.0,0.24024]
[1741412323657,0.31214302,86004.0,86003.0,0.24124]
[1741412323864,0.67294302,86004.0,86003.0,0.24124]
[1741412324054,0.67294302,86004.0,86003.0,0.24024]
[1741412324255,0.67294302,86004.0,86003.0,0.24124]
[1741412324454,0.67294302,86004.0,86003.0,0.24024]
[1741412324658,0.67294302,86004.0,86003.0,0.24124]
[1741412325159,0.5917945,86004.0,86003.0,0.24124]
[1741412325350,0.4770945,86004.0,86003.0,0.4736359]
[1741412325554,0.1162945,86004.0,86003.0,0.8344359]
[1741412325863,0.1162945,86004.0,86003.0,0.85087579]
[1741412326056,0.1162945,86004.0,86003.0,0.85187579]
[1741412326257,0.1162945,86004.0,86003.0,0.73557989]
[1741412326457,0.1162945,86004.0,86003.0,0.49007579]
[1741412326660,0.1162945,86004.0,86003.0,0.49107579]
[1741412329165,0.0581464,86006.0,86003.0,0.49107579]
[1741412329362,0.1162945,86004.0,86003.0,0.43292759]
[1741412329755,0.0581464,86006.0,86005.0,0.1162932]
[1741412331059,0.0581464,86006.0,86005.0,0.1182932]
[1741412332160,0.1162905,86007.0,86006.0,0.1162905]
[1741412332465,0.1162905,86007.0,86006.0,0.3453905]
[1741412333467,0.1168,86010.0,86006.0,0.3463905]
[1741412333667,0.1162882,86009.0,86008.0,0.1162878]
[1741412334162,0.0581427,86011.0,86008.0,0.1162878]
[1741412334364,0.00017441,86015.0,86014.0,0.116281]
[1741412334561,0.11645411,86015.0,86014.0,0.116281]
[1741412334761,0.11645411,86015.0,86007.0,0.00865584]
[1741412334762,0.1162891,86008.0,86007.0,0.00865584]
[1741412335153,0.1152891,86008.0,86007.0,0.00865584]
[1741412335366,0.1152891,86008.0,86007.0,0.00861584]
[1741412335667,0.1744357,86007.0,86006.0,0.001]
[1741412335859,0.1744357,86007.0,86006.0,0.00104]
[1741412336057,0.4111357,86007.0,86006.0,0.00104]
[1741412336365,0.4101357,86007.0,86006.0,4e-05]
[1741412337163,0.2905357,86007.0,86006.0,4e-05]
[1741412337365,0.30794719,86007.0,86006.0,4e-05]
[1741412337562,0.30794719,86007.0,86006.0,0.00104]
[1741412337869,0.30794719,86007.0,86006.0,0.00204]
[1741412339168,0.24259268,86007.0,86006.0,0.00204]
[1741412339564,0.30073788,86007.0,86006.0,0.00204]
[1741412340265,0.20345115,86007.0,86006.0,0.00204]
[1741412340462,0.20345115,86007.0,86006.0,0.01076912]
[1741412340968,0.20345115,86007.0,86006.0,0.00976912]
[1741412341171,0.20345115,86007.0,86006.0,0.01076912]
[1741412343367,0.20345115,86007.0,86006.0,0.00976912]
[1741412343665,0.20345115,86007.0,86006.0,0.01076912]
[1741412345267,0.0581452,86007.0,86006.0,0.01076912]
[1741412345470,0.0581452,86007.0,86006.0,0.12706092]
[1741412346268,0.0581452,86007.0,86006.0,0.12606092]
[1741412346472,0.0581452,86007.0,86006.0,0.12706092]
[1741412347365,0.0581452,86007.0,86006.0,0.1183318]
[1741412347773,0.0581452,86007.0,86006.0,0.00204]
[1741412348864,0.0581452,86007.0,86006.0,0.1183318]
[1741412349476,0.0581452,86007.0,86006.0,0.00204]
[1741412349874,0.0581452,86007.0,86006.0,0.11744]
[1741412350066,0.2849452,86007.0,86006.0,0.11744]
[1741412350866,0.2849452,86007.0,86006.0,0.2337318]
[1741412351568,0.2849452,86007.0,86006.0,0.3515318]
[1741412352968,0.2849452,86007.0,86006.0,0.3505318]
[1741412353168,0.050937,86009.0,86006.0,0.3515318]
[1741412353368,0.1162905,86007.0,86006.0,0.3515305]
[1741412353763,0.122,86010.0,86006.0,0.23524]
[1741412353969,0.1758387,86017.0,86014.0,0.116281]
[1741412354485,0.122,86016.0,86014.0,0.116281]
[1741412354669,0.0581387,86017.0,86014.0,0.116281]
[1741412354869,0.0581387,86017.0,86014.0,0.343181]
[1741412355970,0.0581387,86017.0,86014.0,0.344181]
[1741412356277,0.0581387,86017.0,86014.0,0.345181]
[1741412356473,0.1752387,86017.0,86014.0,0.345181]
[1741412356673,0.1162802,86015.0,86014.0,0.4614615]
[1741412359179,0.00011065,86023.0,86017.0,0.058138]
[1741412359384,0.1107,86018.0,86017.0,0.174415]
[1741412359575,0.1107,86018.0,86017.0,0.535215]
[1741412360276,0.1107,86018.0,86017.0,0.536215]
[1741412360472,0.1107,86018.0,86017.0,0.646115]